Cogmind - Beta 9.6 @@@ ROGUE MODE // 2020.07.13 @ 13:56:38 Player: Lyft Result: Destroyed by D-53 Grenadier with Mini Grenade Launcher Performance ------------- Evolutions (0) 0 Regions Visited (4) 800 Robots Destroyed (29) 145 Value Destroyed (682) 682 Prototype IDs (22) 440 Alien Tech Used (0) 0 Bonus (300) 300 TOTAL SCORE: 2367 Bonus ------- Aligned with FarCom 300 Cogmind --------- Core Integrity 0/250 Matter 261/300 Energy 250/250 System Corruption 0% Temperature Cool (0) Movement Core (900) Ox17 Location -9/Mines Parts ------- > --- POWER (1) -------- Ion Engine > --- PROPULSION (2) --- (None) > --- UTILITY (2) ------ Large Storage Unit High-capacity Storage Unit > --- WEAPON (2) ------- Light Assault Rifle > --- INVENTORY (18) --- Light Ion Engine Light Nuclear Core Wheel Improved Heat Sink Medium Storage Unit Large Storage Unit High-capacity Matter Pod (81) Heavy EM Pulse Gun Heavy EM Pulse Gun Heavy EM Pulse Gun Heavy EM Pulse Gun Medium Laser Grenade Launcher Longsword +1 Peak State ------------ > --- POWER ------------ Ion Engine > --- PROPULSION ------- Light Treads Compact Wheel > --- UTILITY ---------- Large Storage Unit High-capacity Storage Unit > --- WEAPON ----------- Light Assault Rifle Grenade Launcher > --- INVENTORY -------- Light Ion Engine Light Nuclear Core Wheel Improved Heat Sink Medium Storage Unit Large Storage Unit High-capacity Matter Pod Heavy EM Pulse Gun Heavy EM Pulse Gun Heavy EM Pulse Gun Heavy EM Pulse Gun Medium Laser Grenade Launcher [Rating: 9] Favorites ----------- Power Ion Engine Engine Ion Engine Propulsion Light Treads Treads Light Treads Leg Aluminum Leg Wheel Compact Wheel Utility Large Storage Unit Storage Large Storage Unit Weapon Light Assault Rifle Energy Gun Medium Laser Ballistic Gun Light Assault Rifle Launcher Grenade Launcher Build | -11 -10 -10 -10 -9 ------- Run | Scr Mat Min Exi Min Slots Evolved . | . . . . . Power . | . . . . . Propulsion . | . . . . . Utility . | . . . . . Weapon . | . . . . . Parts Attached 16 | 3 12 1 . . Power 2 | . 2 . . . Engine 2 | . 2 . . . Core . | . . . . . Reactor . | . . . . . Propulsion 4 | 2 2 . . . Treads 2 | 1 1 . . . Leg . | . . . . . Wheel 2 | 1 1 . . . Hover . | . . . . . Flight . | . . . . . Utility 4 | 1 3 . . . Device . | . . . . . Storage 4 | 1 3 . . . Processor . | . . . . . Hackware . | . . . . . Protection . | . . . . . Artifact . | . . . . . Weapon 6 | . 5 1 . . Energy Gun 2 | . 2 . . . Energy Cannon . | . . . . . Ballistic Gun 1 | . 1 . . . Ballistic Cannon . | . . . . . Launcher 3 | . 2 1 . . Special Weapon . | . . . . . Impact Weapon . | . . . . . Slashing Weapon . | . . . . . Piercing Weapon . | . . . . . Special Melee Weapon . | . . . . . Unidentified Prototypes . | . . . . . Parts Lost 10 | . 7 . . 3 Power 1 | . 1 . . . Propulsion 4 | . 2 . . 2 Utility . | . . . . . Weapon 5 | . 4 . . 1 Highest Loss Streak 7 | . 7 . . 3 Average Slot Usage (%) 97 | . 94 100 100 100 Engine 13 | . 13 14 14 14 Treads 13 | . 13 14 14 14 Wheel 13 | . 13 14 14 14 Storage 28 | . 28 28 28 28 Energy Gun 6 | . 15 1 . . Ballistic Gun 11 | . 8 14 14 14 Launcher 7 | . . 12 14 14 Naked Turns . | . . . . . Heaviest Build 57 | 17 56 57 57 57 Greatest Support 20 | 16 20 20 20 20 Greatest Overweight (x) 3 | 1 3 3 2 2 Average Overweight (x) 2 | . 2 2 2 2 Largest Inventory Capacity 18 | 8 18 18 18 18 Average Capacity 17 | 6 17 18 18 18 Most Carried 14 | 6 12 13 14 14 Average Carried 10 | 4 6 12 13 14 Final Capacity 18 | 8 18 18 18 18 Final Carried 14 | 4 12 13 14 14 Class Distribution -------------------- 100% | Mutant Dominant Class ---------------- Mutant | -10/Materials Mutant | -10/Mines Mutant | -10/Exiles Mutant | -9/Mines Resources | -11 -10 -10 -10 -9 ----------- Run | Scr Mat Min Exi Min Matter Collected 545 | 230 225 90 . . Remotely . | . . . . . Salvage Created 802 | 90 512 200 . . Parts 51 | 5 34 12 . . Haulers Intercepted 1 | . 1 . . . Recyclers Shooed 1 | 1 . . . . Parts Field Recycled . | . . . . . Retrieved Matter . | . . . . . Parts Self-Destructed . | . . . . . Prevented . | . . . . . Kills | -11 -10 -10 -10 -9 ------- Run | Scr Mat Min Exi Min Combat Hostiles Destroyed 17 | . 10 7 . . Guns 7 | . 5 2 . . AOE 10 | . 5 5 . . Classes Destroyed 8 | 2 5 1 . . Worker 2 | . 2 . . . Tunneler 3 | 1 1 1 . . Hauler 1 | . 1 . . . Recycler 2 | 1 . 1 . . Operator 1 | . 1 . . . Watcher 3 | . 3 . . . Swarmer 3 | . . 3 . . Grunt 14 | . 10 4 . . Best Kill Streak 9 | 2 9 5 . . Combat Bots Only 7 | . 7 4 . . Max Kills in Single Turn 3 | 1 2 3 . . Gunslinging . | . . . . . Exploded 2 | . 2 2 . . Melee . | . . . . . Uniques/NPCs Destroyed . | . . . . . Combat | -11 -10 -10 -10 -9 -------- Run | Scr Mat Min Exi Min Damage Taken 1114 | 4 765 277 . 68 Core 264 | . 181 54 . 29 Absorbed by Shields . | . . . . . Core Remaining (%) 100 | 100 . . . . Volleys Fired 57 | 4 39 14 . . Largest 2 | 2 2 2 . . Hottest 90 | 90 90 50 . . Shots Fired 99 | 8 65 26 . . Gun 82 | 8 60 14 . . Cannon . | . . . . . Launcher 17 | . 5 12 . . Special . | . . . . . Kinetic 28 | . 14 14 . . Thermal 37 | 4 33 . . . Explosive 17 | . 5 12 . . Electromagnetic 17 | 4 13 . . . Robot Hit Streak 13 | 5 13 4 . . Robot Miss Streak 4 | 1 4 3 . . Penetration Max . | . . . . . Secondary Targets 1 | . 1 . . . Max Gunslinging Chain 1 | . 1 . . . Shots Hit Robots 57 | 6 40 11 . . Core Hits 45 | 3 32 10 . . Critical Hits . | . . . . . Critical Kills . | . . . . . Critical Parts Destroyed . | . . . . . Melee Attacks . | . . . . . Impact . | . . . . . Slashing . | . . . . . Piercing . | . . . . . Sneak Attacks . | . . . . . Combat Hostiles . | . . . . . Follow-up Attacks . | . . . . . Damage Inflicted 1753 | 114 1004 635 . . Guns 603 | 77 475 51 . . Cannons . | . . . . . Explosions 1147 | 37 526 584 . . Melee . | . . . . . Ramming 3 | . 3 . . . Kinetic 97 | . 46 51 . . Thermal 371 | 87 284 . . . Explosive 1110 | . 526 584 . . Electromagnetic 172 | 27 145 . . . Impact . | . . . . . Slashing . | . . . . . Piercing . | . . . . . Highest Corruption . | . . . . . Average Corruption . | . . . . . Corruption Purged . | . . . . . Overload Shots . | . . . . . Overflow Damage 23 | . 8 15 . . Projectiles . | . . . . . Explosions 23 | . 8 15 . . Melee . | . . . . . Knockbacks . | . . . . . Impact . | . . . . . Kinetic . | . . . . . Secondary . | . . . . . Self-Inflicted Damage 184 | 4 80 100 . . Shots 8 | 1 3 4 . . Rammed 1 | . 1 . . . Targets Rammed 1 | . 1 . . . Kicked . | . . . . . Crushed . | . . . . . Highest Temperature 254 | 112 254 29 . 1 Average Temperature 80 | 60 97 9 . 1 Received Heat Transfer 482 | . 387 75 . 20 Siege Activations . | . . . . . Robots Corrupted . | . . . . . Combat Hostiles . | . . . . . Parts Fried 1 | . 1 . . . Impact Corruptions . | . . . . . Robots Melted . | . . . . . Combat Hostiles . | . . . . . Parts Melted 2 | . 2 . . . Heat Transferred 1001 | 198 803 . . . Parts Sabotaged . | . . . . . Parts Stolen . | . . . . . Parts Stripped . | . . . . . Power Chain Reactions 1 | 1 . . . . Missiles Intercepted . | . . . . . Alert | -11 -10 -10 -10 -9 ------- Run | Scr Mat Min Exi Min Peak Influence 256 | 10 199 256 . . Average Influence 99 | 5 83 175 . . Maximum Alert Level 1 | . . 1 . . Low Security (%) 86 | 100 100 52 . 100 Level 1 13 | . . 47 . . Level 2 . | . . . . . Level 3 . | . . . . . Level 4 . | . . . . . Level 5 . | . . . . . High Security . | . . . . . Max Security . | . . . . . Squads Dispatched 2 | . 2 . . . Investigation 1 | . 1 . . . Extermination . | . . . . . Reinforcement 1 | . 1 . . . Assault . | . . . . . Garrison . | . . . . . Intercept . | . . . . . Construction Impeded . | . . . . . Haulers Reinforced . | . . . . . Stealth | -11 -10 -10 -10 -9 --------- Run | Scr Mat Min Exi Min Distress Signals 1 | . 1 . . . Communications Jammed . | . . . . . Distress Signals . | . . . . . Times Spotted 33 | . 16 7 . 10 Peak Tracking Total 10 | . 7 3 . 10 Tactical Retreats . | . . . . . Traps | -11 -10 -10 -10 -9 ------- Run | Scr Mat Min Exi Min Traps Triggered 1 | . 1 . . . Indirectly . | . . . . . Trap Hack Attempts . | . . . . . Triggered . | . . . . . Disarmed . | . . . . . Reprogrammed . | . . . . . Reused . | . . . . . Traps Extracted . | . . . . . Installed . | . . . . . Triggered . | . . . . . Machines | -11 -10 -10 -10 -9 ---------- Run | Scr Mat Min Exi Min Machines Disabled 2 | . 1 1 . . Max in Single Turn 1 | . 1 1 . . Machines Sabotaged . | . . . . . Garrisons Compromised . | . . . . . Overloaded Fab Kills . | . . . . . Fab Network Shutdowns . | . . . . . Hacking | -11 -10 -10 -10 -9 --------- Run | Scr Mat Min Exi Min Machines Accessed 3 | . . . 3 . Terminals . | . . . . . Fabricators . | . . . . . Repair Stations . | . . . . . Recycling Units . | . . . . . Scanalyzers . | . . . . . Garrison Access . | . . . . . Total Hacks 4 | . . . 4 . Successful 4 | . . . 4 . Failed . | . . . . . Catastrophic . | . . . . . Database Lockouts . | . . . . . Manual 1 | . . . 1 . Terminals . | . . . . . Fabricators . | . . . . . Repair Stations . | . . . . . Recycling Units . | . . . . . Scanalyzers . | . . . . . Garrison Access . | . . . . . Terminal Hacks 4 | . . . 4 . Record 3 | . . . 3 . EX-Prototype ID Bank 1 | . . . 1 . Fabricator Hacks . | . . . . . Repair Station Hacks . | . . . . . Recycling Unit Hacks . | . . . . . Scanalyzer . | . . . . . Garrison Access Hacks . | . . . . . Unauthorized Hacks . | . . . . . Terminals . | . . . . . Fabricators . | . . . . . Repair Stations . | . . . . . Recycling Units . | . . . . . Scanalyzers . | . . . . . Garrison Access . | . . . . . Data Cores Recovered . | . . . . . Used . | . . . . . Hacking Detections . | . . . . . Full Trace Events . | . . . . . Feedback Events . | . . . . . Feedback Blocked . | . . . . . Robot Schematics Acquired . | . . . . . Robots Built . | . . . . . Matter . | . . . . . Time . | . . . . . Total Robot Build Rating . | . . . . . Part Schematics Acquired . | . . . . . Parts Built . | . . . . . Matter . | . . . . . Time . | . . . . . Total Part Build Rating . | . . . . . Parts Repaired . | . . . . . Time . | . . . . . Parts Recycled . | . . . . . Recycled Matter . | . . . . . Retrieved Matter . | . . . . . Retrieved Components . | . . . . . Parts Scanalyzed . | . . . . . Part Schematics Acquired . | . . . . . Parts Damaged . | . . . . . Bothacking | -11 -10 -10 -10 -9 ------------ Run | Scr Mat Min Exi Min Used RIF Installer . | . . . . . Robots Hacked . | . . . . . Non-combat . | . . . . . Combat . | . . . . . Robot Hacks Applied . | . . . . . Relay Couplers Released . | . . . . . Robots Rewired . | . . . . . Allies Hacked . | . . . . . Hacks Repelled . | . . . . . Allies | -11 -10 -10 -10 -9 -------- Run | Scr Mat Min Exi Min Total Allies . | . . . . . Largest Group . | . . . . . Highest-Rated Group . | . . . . . Highest-Rated Ally . | . . . . . Total Orders . | . . . . . Ally Attacks . | . . . . . Total Damage . | . . . . . Kills . | . . . . . Allies Corrupted . | . . . . . Allies Melted . | . . . . . Intel | -11 -10 -10 -10 -9 ------- Run | Scr Mat Min Exi Min Robot Analysis Total . | . . . . . Derelict Logs Recovered 1 | . . 1 . . Drone Launches . | . . . . . Drone Recoveries . | . . . . . Exploration | -11 -10 -10 -10 -9 ------------- Run | Scr Mat Min Exi Min Turns Passed 1851 | 24 770 377 547 133 Spaces Moved 1044 | 7 488 215 274 60 Core . | . . . . . Treads 422 | . 3 85 274 60 Legs . | . . . . . Wheels 622 | 7 485 130 . . Hover . | . . . . . Flight . | . . . . . Fastest Speed 100 | 100 110 130 200 200 Average Speed 156 | 105 126 157 200 200 Slowest Speed 200 | 110 180 200 200 200 Overloaded Moves . | . . . . . Propulsion Burnouts . | . . . . . Robots Hopped . | . . . . . Cave-ins Triggered . | . . . . . Exploration Rate (%) 39 | 2 67 37 62 27 Regions Visited 4 Branch Regions 3 Pre-discovered Areas 2 | . . 1 1 . Known Exits Taken . | . . . . . Unknown Exits Taken 4 | 1 1 1 1 . Scrap Searched . | . . . . . Spaces Dug 8 | . . 8 . . Terrain Destroyed 105 | 5 20 80 . . Melee . | . . . . . Projectile . | . . . . . AOE 105 | 5 20 80 . . Actions | -11 -10 -10 -10 -9 --------- Run | Scr Mat Min Exi Min Total 1172 | 16 579 230 274 73 Wait 31 | . 18 . . 13 Move 1040 | 6 487 214 273 60 Hop . | . . . . . Pick Up 21 | 1 18 1 1 . Fast Attach . | . . . . . Attach 11 | 3 8 . . . Detach 1 | . 1 . . . Swap 5 | . 4 1 . . Drop 5 | 2 3 . . . Fire 57 | 4 39 14 . . Melee . | . . . . . Ram 1 | . 1 . . . Kick . | . . . . . Crush . | . . . . . Escape Stasis . | . . . . . Rewire . | . . . . . Trap . | . . . . . Miscellaneous . | . . . . . Route ------- -11/Scrapyard -10/Materials (discovered 3 exits: [*Mat x2] / [*Min]) -10/Mines (discovered 2 exits: [*Mat] / *Exi) -10/Exiles (discovered 2 exits: [*Min x2]) -9/Mines History --------- Turn | Location | Event 14 | -11/Scrapyard | Discovered new exit (range 2) 25 | -11/Scrapyard | Entered Materials 119 | -10/Materials | Discovered new exit (range 11) 160 | -10/Materials | Core integrity fell below 50% 190 | -10/Materials | Destroyed 7 combat bots 200 | -10/Materials | Lost 7 parts (1p2n4w) 305 | -10/Materials | Build established: Mutant 357 | -10/Materials | Discovered new exit (range 16) 667 | -10/Materials | Discovered new exit (range 9) 795 | -10/Materials | Entered Mines 843 | -10/Mines | Core integrity fell below 20% 924 | -10/Mines | Discovered new exit (range 8) 925 | -10/Mines | Learned Materials terminal intel 1010 | -10/Mines | Learned location of Storage (-7) 1164 | -10/Mines | Deemed a non-threat by the Exiles lab entrance 1164 | -10/Mines | Discovered new exit (range 5) 1172 | -10/Mines | Entered Exiles 1208 | -10/Exiles | Discovered new exit (range 15) 1252 | -10/Exiles | Met 8R-AWN 1284 | -10/Exiles | Met EX-HEX 1342 | -10/Exiles | Met EX-BIN 1406 | -10/Exiles | Aligned with FarCom system 1408 | -10/Exiles | Given EX-Vault access code 1458 | -10/Exiles | Opened EX-Vault 1482 | -10/Exiles | Found Longsword +1 1540 | -10/Exiles | Exiles lab attacked by MAIN.C 1643 | -10/Exiles | Learned location of Zion (-6) 1703 | -10/Exiles | Discovered new exit (range 10) 1719 | -10/Exiles | Left Exiles lab with Longsword +1 1719 | -10/Exiles | Entered Mines 1813 | -9/Mines | Assembled infested the area 1852 | -9/Mines | Destroyed by D-53 Grenadier with Mini Grenade Launcher Last Messages --------------- from the others." 01721_ K-01 Serf collects debris. 01735_ W1-DM0: "Oh no, it's like what happened to the Exiles when they were wandering homeless, only there's no Warlord to save us!" 01738_ K-01 Serf collects debris. 01813_ ALERT: Infestation in the mines, dispatching Demolisher response squad. 01813_ K-01 Serf collects debris. 01819_ U-05 Engineer destroyed. 01822_ T-07 Excavator is excavating. 01822_ K-01 Serf collects debris. 01828_ K-01 Serf destroyed. 01829_ T-07 Excavator destroyed. 01835_ as-16933 destroyed. 01837_ as-85162 destroyed. 01850_ Grenade Launcher destroyed. 01852_ W1-DM0 destroyed. 01852_ as-36662 destroyed. 01852_ Com. Wheel destroyed. 01852_ Lgt. Treads destroyed. Map ----- +----------------------------------------------------+ | ???????????????????????????????????????????? | | ???????????????????????????????????????????? | | ???????????????????????????????????????????? | | ???????????????????????????????????????????? | | ???????????????????????????????????????????? | | ???????????????????????????????????????????? | | ???????????????????????????????????????????? | | ???????????????????????????????????????????? | | ???????????????????????????????????????????? | | ???????????????????????????????????????????? | | ???????????????????????????????????????????? | | ???????????????????????????????????????????? | | ???????????????????????????????????????????? | | ???????????????????????????????????????????? | | ???????????????????????????????????????????? | | ???????????????????????????????????????????? | | ???????????????????????????????????????????? | | ???????????????????????????????????????????? | | ???????????????????????????????????????????? | | ???????????????????????????????????????????? | | #######????????????????????????????????????? | | ##????????????????????????#??????????? | | ##?????????????#####??? #??????????? | | ##????????????# #?? #??????????? | | ##??????????## ## #??????????? | | #?????????## @ ##?????????? | | #????????### ##????????? | | ###???????## %*a #????????? | | ##???#????# a% #???????? | | ## # # ???# ## #???????? | | ### #### ##?### #???????? | | ??# d d #????? #???????? | | ???## ##?????? ##???????? | | ?????# ##########???????? #????????? | | ?????## ##??????????????????? #????????? | | ??????## #?????????????????????? ????????? | | ????????#* ??????????????????????? ???????? | | ????????#%|##??????????????????????????????? | | ????????#= #???????????????????????????????? | | ????????# ##???????????????????????????????? | | ????????##?????????????????????????????????? | | ???????????????????????????????????????????? | | ???????????????????????????????????????????? | | ???????????????????????????????????????????? | | ???????????????????????????????????????????? | | ???????????????????????????????????????????? | | ???????????????????????????????????????????? | | ???????????????????????????????????????????? | | ???????????????????????????????????????????? | | ???????????????????????????????????????????? | +----------------------------------------------------+ Best States ------------- Heat Dissipation 25 Energy Generation 10 Energy Capacity 250 Matter Stores 300 Matter Capacity 300 Sight Range 16 Terrain Scan Density 10 Evasion (%) 40 Recoil Reduction 1 Item Schematics ----------------- None Robot Schematics ------------------ None Fabricated ------------ Nothing Alien Tech Used ----------------- None Achievements -------------- None Challenges ------------ None Game ------ Seed MagneticOpticalLance Manual? 0 Play Time 00:12:10 Cumulative 11.6 hours Start 2020.07.13 @ 13:45:06 End 2020.07.13 @ 13:56:38 Sessions 1 Manual Loads 0 Difficulty Rogue Special Mode None Game No. 27 Rogue 26 Adventurer 0 Explorer 1 Win Type - Total 0 Types 0/0/0/0/0/0/0 Lore% 22 Gallery% 24 Achievement% 17 Wizard Run 0 Options --------- ASCII 0 Keyboard 0 Movement Mouse Keybinds 0 Fullscreen 2 Font 24/Terminus Map View 76x50 Tactical HUD 1 Map Filters NONE Filters NONE Steam 1 RUN: 220a1e34-8dab-419a-bbe1-c14116522632